[Event "Asian Continental-ch Women 2019"]
[Site "XingTai"]
[Date "2019.06.08"]
[Round "2.19"]
[White "Hoang, Thi Bao Tram"]
[Black "Kulkarni Bhakti"]
[Result "0-1"]
[ECO "D11"]
[WhiteElo "2293"]
[BlackElo "2380"]
[Annotator "NA"]
[PlyCount "76"]
[EventDate "2019.06.06"]
[EventType "swiss"]
[EventCountry "CHN"]
[SourceTitle "playchess.com"]
[Source "ChessBase"]
[SourceQuality "1"]
[TimeControl "40/5400+30:1800+30"]

1. d4 {[%emt 0:00:00]} d5 {[%emt 0:00:00]} 2. c4 {[%emt 0:01:04]} c6 {[%emt 0:00:43]} 3. Nf3 {[%emt 0:01:44]} Nf6 {[%emt 0:00:40]} 4. e3 {[%emt 0:01:16]} Bg4 {[%emt 0:00:30]} 5. cxd5 {[%emt 0:04:44]} Bxf3 {[%emt 0:01:41]} 6. Qxf3 {[%emt 0:00:16]} cxd5 {[%emt 0:00:10]} 7. Nc3 {[%emt 0:02:38]} Nc6 {[%emt 0:00:35]} 8. Bd2 {[%emt 0:01:13]} e6 {[%emt 0:00:22]} 9. Qg3 {[%emt 0:01:03]} a6 {[%emt 0:05:07]} 10. Rc1 {[%emt 0:04:36]} Rc8 {[%emt 0:02:35]} 11. Bd3 {[%emt 0:01:37]} Bd6 {[%emt 0:03:24]} 12. f4 {[%emt 0:01:56]} O-O {[%emt 0:02:19]} 13. Qh3 {[%emt 0:00:27]} b5 {[%emt 0:08:31]} 14. O-O {[%emt 0:05:39]} g6 {[%emt 0:17:39]} 15. g4 {[%emt 0:08:50]} Na5 {[%emt 0:12:47]} 16. f5 {[%emt 0:27:05]} exf5 {[%emt 0:08:06]} 17. gxf5 {[%emt 0:03:13]} Nc4 {[%emt 0:05:11]} 18. Rc2 {[%emt 0:01:30]} Re8 {[%emt 0:10:12]} 19. Bc1 {[%emt 0:05:28]} Bf8 {[%emt 0:00:29]} 20. Rcf2 {[%emt 0:04:23]} Bg7 {[%emt 0:00:34]} 21. Rf4 {[%emt 0:04:59]} g5 {[%emt 0:09:06]} 22. R4f2 {[%emt 0:01:09]} g4 {[%emt 0:00:33]} 23. Qg3 {[%emt 0:00:45]} Bh6 {[%emt 0:00:39]} 24. Re2 {[%emt 0:00:26]} Nd6 {[%emt 0:02:31]} 25. Kh1 {[%emt 0:04:24]} Bg5 {[%emt 0:01:43]} 26. h3 {[%emt 0:05:21]} b4 {[%emt 0:02:01]} 27. Na4 {[%emt 0:00:58]} h5 {[%emt 0:00:50]} 28. hxg4 {[%emt 0:01:17]} Nde4 {[%emt 0:01:10]} 29. Bxe4 {[%emt 0:01:54]} Nxe4 {[%emt 0:00:20]} 30. Qf3 {[%emt 0:01:56]} h4 {[%emt 0:00:12]} 31. Rg2 {[%emt 0:00:52]} Ng3+ {[%emt 0:01:35]} 32. Rxg3 {[%emt 0:00:09]} hxg3 {[%emt 0:00:32]} 33. Nc5 {[%emt 0:00:10]} Bxe3 {[%emt 0:02:28]} 34. f6 {[%emt 0:00:30]} Bxd4 {[%emt 0:00:20]} 35. Nd3 {[%emt 0:01:12]} Rc2 {[%emt 0:00:50]} 36. Qxg3 {[%emt 0:00:21]} Ree2 {[%emt 0:00:15]} 37. g5 {[%emt 0:00:33]} Qe8 {[%emt 0:00:27]} 38. Nf4 {[%emt 0:02:50]} Qe4+ {[%emt 0:00:14]} 0-1

[Event "Asian Continental-ch Women 2019"]
[Site "XingTai"]
[Date "2019.06.08"]
[Round "2.20"]
[White "Sukandar, Irine Kharisma"]
[Black "Kurbonboeva, Sarvinoz"]
[Result "1/2-1/2"]
[ECO "B90"]
[WhiteElo "2378"]
[BlackElo "2259"]
[Annotator "NA"]
[PlyCount "101"]
[EventDate "2019.06.06"]
[EventType "swiss"]
[EventCountry "CHN"]
[SourceTitle "playchess.com"]
[Source "ChessBase"]
[SourceQuality "1"]
[TimeControl "40/5400+30:1800+30"]

1. e4 {[%emt 0:01:19]} c5 {[%emt 0:00:00]} 2. Nf3 {[%emt 0:00:13]} d6 {[%emt 0:00:00]} 3. d4 {[%emt 0:00:12]} cxd4 {[%emt 0:00:00]} 4. Nxd4 {[%emt 0:00:07]} Nf6 {[%emt 0:00:01]} 5. Nc3 {[%emt 0:00:18]} a6 {[%emt 0:00:11]} 6. h3 {[%emt 0:00:13]} e5 {[%emt 0:00:50]} 7. Nb3 {[%emt 0:00:06]} Be6 {[%emt 0:03:31]} 8. Be3 {[%emt 0:00:08]} Be7 {[%emt 0:01:07]} 9. g4 {[%emt 0:03:16]} d5 {[%emt 0:09:17]} 10. exd5 {[%emt 0:02:06]} Nxd5 {[%emt 0:00:08]} 11. Nxd5 {[%emt 0:00:19]} Bxd5 {[%emt 0:06:45]} 12. Rg1 {[%emt 0:00:12]} Nc6 {[%emt 0:03:00]} 13. Qd2 {[%emt 0:05:28]} O-O {[%emt 0:10:00]} 14. O-O-O {[%emt 0:03:10]} Bf3 {[%emt 0:08:31]} 15. Be2 {[%emt 0:09:08]} Qxd2+ {[%emt 0:04:40]} 16. Rxd2 {[%emt 0:00:19]} Bxe2 {[%emt 0:00:07]} 17. Rxe2 {[%emt 0:00:04]} Rfd8 {[%emt 0:04:49]} 18. a3 {[%emt 0:05:01]} b5 {[%emt 0:03:38]} 19. Rd1 {[%emt 0:01:27]} f6 {[%emt 0:14:16]} 20. Red2 {[%emt 0:01:48]} Kf7 {[%emt 0:00:32]} 21. c3 {[%emt 0:06:46]} Rxd2 {[%emt 0:03:09]} 22. Rxd2 {[%emt 0:00:17]} Rd8 {[%emt 0:00:07]} 23. Bc5 {[%emt 0:02:20]} Rxd2 {[%emt 0:02:13]} 24. Kxd2 {[%emt 0:00:13]} Bd8 {[%emt 0:00:05]} 25. Kd3 {[%emt 0:02:24]} Ke6 {[%emt 0:01:26]} 26. Be3 {[%emt 0:04:01]} Kd5 {[%emt 0:01:41]} 27. f3 {[%emt 0:02:00]} Be7 {[%emt 0:06:50]} 28. Nd2 {[%emt 0:00:47]} g6 {[%emt 0:03:42]} 29. c4+ {[%emt 0:03:21]} Ke6 {[%emt 0:01:20]} 30. b4 {[%emt 0:04:35]} f5 {[%emt 0:02:22]} 31. gxf5+ {[%emt 0:09:59]} gxf5 {[%emt 0:00:02]} 32. cxb5 {[%emt 0:00:13]} axb5 {[%emt 0:00:00]} 33. Nb1 {[%emt 0:00:13]} e4+ {[%emt 0:04:18]} 34. fxe4 {[%emt 0:00:21]} Ne5+ {[%emt 0:00:03]} 35. Ke2 {[%emt 0:00:55]} Nc4 {[%emt 0:00:58]} 36. exf5+ {[%emt 0:06:56]} Kxf5 {[%emt 0:00:02]} 37. Kd3 {[%emt 0:00:23]} h5 {[%emt 0:03:41]} 38. Bd4 {[%emt 0:05:45]} Kg5 {[%emt 0:04:33]} 39. a4 {[%emt 0:02:08]} Bxb4 {[%emt 0:00:17]} 40. axb5 {[%emt 0:00:00]} Nd6 {[%emt 0:00:00]} 41. b6 {[%emt 0:04:04]} Kh4 {[%emt 0:04:39]} 42. Nc3 {[%emt 0:05:40]} Kxh3 {[%emt 0:04:20]} 43. Ne4 {[%emt 0:00:23]} h4 {[%emt 0:07:27]} 44. Be5 {[%emt 0:01:10]} Ba5 {[%emt 0:02:34]} 45. Ke2 {[%emt 0:06:18]} Bxb6 {[%emt 0:01:10]} 46. Bxd6 {[%emt 0:00:15]} Kg2 {[%emt 0:01:27]} 47. Ng5 {[%emt 0:00:23]} h3 {[%emt 0:01:18]} 48. Nf3 {[%emt 0:00:21]} Bf2 {[%emt 0:00:59]} 49. Ne1+ {[%emt 0:05:43]} Bxe1 {[%emt 0:00:40]} 50. Kxe1 {[%emt 0:00:03]} h2 {[%emt 0:00:05]} 51. Bxh2 {[%emt 0:00:04]} 1/2-1/2

[Event "Asian Continental-ch Women 2019"]
[Site "XingTai"]
[Date "2019.06.08"]
[Round "2.21"]
[White "Li, Yunshan"]
[Black "Munkhzul, Turmunkh"]
[Result "1/2-1/2"]
[ECO "E92"]
[WhiteElo "2264"]
[BlackElo "2371"]
[Annotator "NA"]
[PlyCount "146"]
[EventDate "2019.06.06"]
[EventType "swiss"]
[EventCountry "CHN"]
[SourceTitle "playchess.com"]
[Source "ChessBase"]
[SourceQuality "1"]
[TimeControl "40/5400+30:1800+30"]

1. d4 {[%emt 0:00:00]} Nf6 {[%emt 0:00:00]} 2. c4 {[%emt 0:00:00]} g6 {[%emt 0:00:00]} 3. Nc3 {[%emt 0:00:00]} Bg7 {[%emt 0:00:06]} 4. e4 {[%emt 0:00:00]} d6 {[%emt 0:00:07]} 5. Nf3 {[%emt 0:00:17]} O-O {[%emt 0:00:24]} 6. Be2 {[%emt 0:00:10]} e5 {[%emt 0:00:07]} 7. dxe5 {[%emt 0:00:23]} dxe5 {[%emt 0:00:09]} 8. Qxd8 {[%emt 0:00:12]} Rxd8 {[%emt 0:00:08]} 9. Bg5 {[%emt 0:00:18]} Re8 {[%emt 0:00:08]} 10. O-O-O {[%emt 0:00:42]} Na6 {[%emt 0:00:12]} 11. Ne1 {[%emt 0:00:42]} c6 {[%emt 0:00:37]} 12. f3 {[%emt 0:00:51]} Be6 {[%emt 0:00:40]} 13. Nc2 {[%emt 0:01:21]} h6 {[%emt 0:01:58]} 14. Be3 {[%emt 0:00:25]} Bf8 {[%emt 0:01:11]} 15. Rd2 {[%emt 0:06:52]} Kg7 {[%emt 0:07:56]} 16. Rhd1 {[%emt 0:01:57]} Bc5 {[%emt 0:05:39]} 17. Bxc5 {[%emt 0:04:16]} Nxc5 {[%emt 0:00:07]} 18. b3 {[%emt 0:15:07]} a5 {[%emt 0:00:53]} 19. Kb2 {[%emt 0:00:29]} Kf8 {[%emt 0:04:28]} 20. g3 {[%emt 1:05:58]} Ke7 {[%emt 0:03:34]} 21. Ka3 {[%emt 0:00:00]} Reb8 {[%emt 0:03:49]} 22. Ne3 {[%emt 0:00:00]} Rd8 {[%emt 0:03:34]} 23. Bf1 {[%emt 0:00:00]} Rxd2 {[%emt 0:04:15]} 24. Rxd2 {[%emt 0:00:00]} Rd8 {[%emt 0:00:54]} 25. Rxd8 {[%emt 0:00:00]} Kxd8 {[%emt 0:00:05]} 26. Kb2 {[%emt 0:00:00]} Nh7 {[%emt 0:02:09]} 27. Kc2 {[%emt 0:00:00]} Ng5 {[%emt 0:03:09]} 28. Bg2 {[%emt 0:00:00]} Bd7 {[%emt 0:05:27]} 29. Kd2 {[%emt 0:00:00]} h5 {[%emt 0:07:54]} 30. Nc2 {[%emt 0:00:00]} f6 {[%emt 0:03:58]} 31. Ke3 {[%emt 0:00:00]} Nf7 {[%emt 0:00:35]} 32. Ne2 {[%emt 0:00:00]} Nd6 {[%emt 0:00:36]} 33. Nc1 {[%emt 0:00:00]} f5 {[%emt 0:08:06]} 34. Nd3 {[%emt 0:00:00]} Nxd3 {[%emt 0:00:13]} 35. Kxd3 {[%emt 0:00:00]} fxe4+ {[%emt 0:00:54]} 36. fxe4 {[%emt 0:00:00]} b6 {[%emt 0:01:27]} 37. a3 {[%emt 0:00:00]} Be6 {[%emt 0:05:05]} 38. Ne3 {[%emt 0:00:00]} b5 {[%emt 0:06:09]} 39. c5 {[%emt 0:00:00]} Ne8 {[%emt 0:02:35]} 40. b4 {[%emt 0:00:00]} a4 {[%emt 0:00:00]} 41. Nd1 {[%emt 0:14:24]} Nc7 {[%emt 0:06:50]} 42. Ne3 {[%emt 0:07:28]} Ba2 {[%emt 0:00:44]} 43. Kc3 {[%emt 0:11:10]} Ne6 {[%emt 0:01:48]} 44. Nc2 {[%emt 0:00:42]} Bb1 {[%emt 0:01:20]} 45. Kb2 {[%emt 0:04:18]} Bxc2 {[%emt 0:00:05]} 46. Kxc2 {[%emt 0:00:03]} Nd4+ {[%emt 0:00:08]} 47. Kd3 {[%emt 0:00:22]} Ke7 {[%emt 0:00:30]} 48. h4 {[%emt 0:03:00]} Kf7 {[%emt 0:07:58]} 49. Bh3 {[%emt 0:00:45]} Ke8 {[%emt 0:00:05]} 50. Bg2 {[%emt 0:00:55]} Ke7 {[%emt 0:00:28]} 51. Kd2 {[%emt 0:00:46]} Kf6 {[%emt 0:01:15]} 52. Bh3 {[%emt 0:00:13]} Nb3+ {[%emt 0:07:14]} 53. Kc2 {[%emt 0:00:26]} g5 {[%emt 0:01:45]} 54. hxg5+ {[%emt 0:00:17]} Kxg5 {[%emt 0:00:06]} 55. Bd7 {[%emt 0:00:36]} h4 {[%emt 0:00:42]} 56. gxh4+ {[%emt 0:00:03]} Kxh4 {[%emt 0:00:04]} 57. Kd3 {[%emt 0:00:22]} Nd4 {[%emt 0:00:06]} 58. Be8 {[%emt 0:00:25]} Kg4 {[%emt 0:00:07]} 59. Bd7+ {[%emt 0:00:56]} Kf3 {[%emt 0:00:18]} 60. Be8 {[%emt 0:00:20]} Kf2 {[%emt 0:00:21]} 61. Kd2 {[%emt 0:00:27]} Nb3+ {[%emt 0:00:26]} 62. Kd3 {[%emt 0:00:33]} Nd4 {[%emt 0:00:50]} 63. Kd2 {[%emt 0:00:06]} Kf3 {[%emt 0:00:46]} 64. Kd3 {[%emt 0:00:11]} Kf4 {[%emt 0:00:04]} 65. Bd7 {[%emt 0:00:15]} Kg5 {[%emt 0:00:05]} 66. Be8 {[%emt 0:00:11]} Kf6 {[%emt 0:00:04]} 67. Bd7 {[%emt 0:00:29]} Kf7 {[%emt 0:00:14]} 68. Bg4 {[%emt 0:00:52]} Ke7 {[%emt 0:00:05]} 69. Kd2 {[%emt 0:00:27]} Nb3+ {[%emt 0:02:02]} 70. Kd3 {[%emt 0:01:05]} Nd4 {[%emt 0:00:17]} 71. Kd2 {[%emt 0:00:23]} Nb3+ {[%emt 0:00:48]} 72. Kd3 {[%emt 0:00:06]} Nd4 {[%emt 0:00:04]} 73. Kd2 {[%emt 0:00:11]} Nb3+ {[%emt 0:00:04]} 1/2-1/2

[Event "Asian Continental-ch Women 2019"]
[Site "XingTai"]
[Date "2019.06.08"]
[Round "2.22"]
[White "Ren, Xiaoyi"]
[Black "Pham, Le Thao Nguyen"]
[Result "1-0"]
[ECO "B26"]
[WhiteElo "2255"]
[BlackElo "2370"]
[Annotator "NA"]
[PlyCount "115"]
[EventDate "2019.06.06"]
[EventType "swiss"]
[EventCountry "CHN"]
[SourceTitle "playchess.com"]
[Source "ChessBase"]
[SourceQuality "1"]
[TimeControl "40/5400+30:1800+30"]

1. e4 {[%emt 0:00:00]} c5 {[%emt 0:01:44]} 2. Nc3 {[%emt 0:00:00]} d6 {[%emt 0:02:12]} 3. g3 {[%emt 0:00:13]} Nc6 {[%emt 0:00:18]} 4. Bg2 {[%emt 0:00:09]} g6 {[%emt 0:00:23]} 5. Nge2 {[%emt 0:00:56]} Bg7 {[%emt 0:00:25]} 6. O-O {[%emt 0:00:18]} e6 {[%emt 0:00:36]} 7. d3 {[%emt 0:01:28]} Nge7 {[%emt 0:00:54]} 8. Be3 {[%emt 0:09:58]} Nd4 {[%emt 0:03:46]} 9. Qd2 {[%emt 0:02:14]} O-O {[%emt 0:01:13]} 10. Nd1 {[%emt 0:06:28]} Rb8 {[%emt 0:09:40]} 11. Nxd4 {[%emt 0:09:44]} cxd4 {[%emt 0:01:19]} 12. Bh6 {[%emt 0:00:13]} e5 {[%emt 0:03:21]} 13. Bxg7 {[%emt 0:03:37]} Kxg7 {[%emt 0:00:09]} 14. c3 {[%emt 0:00:05]} Nc6 {[%emt 0:02:02]} 15. f4 {[%emt 0:02:29]} f6 {[%emt 0:03:31]} 16. Nf2 {[%emt 0:05:51]} Be6 {[%emt 0:02:29]} 17. Bf3 {[%emt 0:01:47]} b5 {[%emt 0:02:22]} 18. f5 {[%emt 0:05:40]} Bd7 {[%emt 0:03:06]} 19. h4 {[%emt 0:05:49]} dxc3 {[%emt 0:05:28]} 20. bxc3 {[%emt 0:00:13]} b4 {[%emt 0:01:17]} 21. cxb4 {[%emt 0:15:47]} Nd4 {[%emt 0:04:10]} 22. Bg2 {[%emt 0:02:24]} gxf5 {[%emt 0:01:18]} 23. Kh2 {[%emt 0:05:09]} Kh8 {[%emt 0:02:56]} 24. exf5 {[%emt 0:03:29]} Bxf5 {[%emt 0:01:11]} 25. Ne4 {[%emt 0:00:22]} Bxe4 {[%emt 0:07:49]} 26. dxe4 {[%emt 0:00:20]} Qe7 {[%emt 0:01:18]} 27. Rf2 {[%emt 0:02:22]} Qg7 {[%emt 0:01:16]} 28. Bh3 {[%emt 0:03:19]} Rg8 {[%emt 0:01:33]} 29. Rg1 {[%emt 0:00:12]} Qe7 {[%emt 0:02:10]} 30. a3 {[%emt 0:00:22]} Rg7 {[%emt 0:00:53]} 31. Rgf1 {[%emt 0:01:12]} Rf8 {[%emt 0:02:15]} 32. Qe3 {[%emt 0:02:00]} Rff7 {[%emt 0:04:45]} 33. Rc1 {[%emt 0:01:33]} Rg8 {[%emt 0:00:43]} 34. Rcf1 {[%emt 0:00:23]} Qf8 {[%emt 0:08:09]} 35. a4 {[%emt 0:01:53]} Qe7 {[%emt 0:03:31]} 36. b5 {[%emt 0:00:17]} Qd8 {[%emt 0:01:01]} 37. Qa3 {[%emt 0:04:02]} Rgf8 {[%emt 0:03:46]} 38. Rc1 {[%emt 0:04:34]} Rc7 {[%emt 0:02:50]} 39. Rxc7 {[%emt 0:00:41]} Qxc7 {[%emt 0:00:02]} 40. Qb4 {[%emt 0:00:00]} Kg7 {[%emt 0:00:00]} 41. Bg4 {[%emt 0:06:06]} Rd8 {[%emt 0:11:01]} 42. h5 {[%emt 0:04:09]} Qb7 {[%emt 0:10:22]} 43. Qe1 {[%emt 0:01:54]} Rf8 {[%emt 0:03:22]} 44. Qe3 {[%emt 0:01:53]} h6 {[%emt 0:01:48]} 45. Qd3 {[%emt 0:03:34]} Qc7 {[%emt 0:02:49]} 46. Qd1 {[%emt 0:04:53]} Qc3 {[%emt 0:06:11]} 47. Bf5 {[%emt 0:05:00]} Qe3 {[%emt 0:01:16]} 48. Qg4+ {[%emt 0:03:08]} Kf7 {[%emt 0:03:37]} 49. Kg2 {[%emt 0:02:02]} Rg8 {[%emt 0:01:25]} 50. Bg6+ {[%emt 0:00:08]} Ke7 {[%emt 0:00:08]} 51. a5 {[%emt 0:00:34]} Nxb5 {[%emt 0:01:37]} 52. Rxf6 {[%emt 0:01:41]} Kxf6 {[%emt 0:01:26]} 53. Qf5+ {[%emt 0:00:02]} Ke7 {[%emt 0:00:04]} 54. Qf7+ {[%emt 0:00:03]} Kd8 {[%emt 0:00:03]} 55. Qxg8+ {[%emt 0:00:03]} Kc7 {[%emt 0:00:37]} 56. Qf7+ {[%emt 0:00:04]} Kc6 {[%emt 0:00:42]} 57. Qc4+ {[%emt 0:01:58]} Qc5 {[%emt 0:00:15]} 58. Be8+ {[%emt 0:00:04]} 1-0

[Event "Asian Continental-ch Women 2019"]
[Site "XingTai"]
[Date "2019.06.08"]
[Round "2.23"]
[White "Mahalakshmi, M."]
[Black "Vaishali R"]
[Result "1-0"]
[ECO "A50"]
[WhiteElo "2245"]
[BlackElo "2338"]
[Annotator "NA"]
[PlyCount "117"]
[EventDate "2019.06.06"]
[EventType "swiss"]
[EventCountry "CHN"]
[SourceTitle "playchess.com"]
[Source "ChessBase"]
[SourceQuality "1"]
[TimeControl "40/5400+30:1800+30"]

1. d4 {[%emt 0:00:00]} Nf6 {[%emt 0:00:00]} 2. c4 {[%emt 0:00:00]} b6 {[%emt 0:00:06]} 3. Nf3 {[%emt 0:01:32]} Bb7 {[%emt 0:00:06]} 4. g3 {[%emt 0:00:54]} g6 {[%emt 0:00:14]} 5. Bg2 {[%emt 0:00:31]} Bg7 {[%emt 0:00:05]} 6. Nc3 {[%emt 0:02:05]} O-O {[%emt 0:04:31]} 7. Qc2 {[%emt 0:01:14]} c5 {[%emt 0:05:41]} 8. d5 {[%emt 0:05:47]} e6 {[%emt 0:01:37]} 9. O-O {[%emt 0:06:25]} exd5 {[%emt 0:01:08]} 10. Nh4 {[%emt 0:01:21]} Na6 {[%emt 0:07:34]} 11. cxd5 {[%emt 0:03:55]} Re8 {[%emt 0:06:32]} 12. e4 {[%emt 0:03:55]} d6 {[%emt 0:10:37]} 13. Bd2 {[%emt 0:10:43]} Qd7 {[%emt 0:06:38]} 14. Qb3 {[%emt 0:10:03]} Rac8 {[%emt 0:12:26]} 15. Rfe1 {[%emt 0:06:03]} c4 {[%emt 0:07:14]} 16. Qa4 {[%emt 0:01:53]} Qd8 {[%emt 0:06:25]} 17. Bh3 {[%emt 0:09:56]} Nc5 {[%emt 0:04:05]} 18. Qc2 {[%emt 0:00:58]} Rc7 {[%emt 0:05:01]} 19. Bg2 {[%emt 0:10:32]} Nd3 {[%emt 0:04:02]} 20. Rf1 {[%emt 0:01:12]} a6 {[%emt 0:03:04]} 21. a4 {[%emt 0:03:11]} Rce7 {[%emt 0:03:49]} 22. b3 {[%emt 0:03:33]} Qc8 {[%emt 0:01:41]} 23. Rab1 {[%emt 0:02:16]} Ng4 {[%emt 0:04:15]} 24. Nd1 {[%emt 0:04:21]} b5 {[%emt 0:02:16]} 25. Bc3 {[%emt 0:02:13]} Qc5 {[%emt 0:02:12]} 26. Bxg7 {[%emt 0:01:05]} Kxg7 {[%emt 0:00:01]} 27. bxc4 {[%emt 0:01:31]} bxc4 {[%emt 0:00:26]} 28. Nb2 {[%emt 0:01:59]} Ngxf2 {[%emt 0:01:34]} 29. Rxf2 {[%emt 0:00:49]} Nxf2 {[%emt 0:00:08]} 30. Qxf2 {[%emt 0:00:10]} Rc8 {[%emt 0:00:37]} 31. Qxc5 {[%emt 0:01:38]} Rxc5 {[%emt 0:00:02]} 32. Rc1 {[%emt 0:00:24]} c3 {[%emt 0:01:12]} 33. Nd3 {[%emt 0:01:04]} Rc4 {[%emt 0:00:19]} 34. e5 {[%emt 0:00:51]} Rd7 {[%emt 0:00:36]} 35. e6 {[%emt 0:01:42]} fxe6 {[%emt 0:00:39]} 36. dxe6 {[%emt 0:00:21]} Re7 {[%emt 0:00:19]} 37. Bxb7 {[%emt 0:01:36]} Rxb7 {[%emt 0:00:01]} 38. Nf3 {[%emt 0:00:08]} Kf6 {[%emt 0:01:12]} 39. Nf4 {[%emt 0:00:28]} g5 {[%emt 0:00:30]} 40. Nd5+ {[%emt 0:00:00]} Kxe6 {[%emt 0:00:00]} 41. Nxc3 {[%emt 0:06:15]} d5 {[%emt 0:11:58]} 42. Re1+ {[%emt 0:03:51]} Kd6 {[%emt 0:00:39]} 43. Ne2 {[%emt 0:00:42]} Re7 {[%emt 0:03:24]} 44. Kf2 {[%emt 0:02:53]} g4 {[%emt 0:03:36]} 45. Nfd4 {[%emt 0:02:30]} Rf7+ {[%emt 0:00:13]} 46. Ke3 {[%emt 0:00:59]} Rxa4 {[%emt 0:00:55]} 47. Rc1 {[%emt 0:03:33]} Ra3+ {[%emt 0:04:49]} 48. Kd2 {[%emt 0:00:54]} Ra2+ {[%emt 0:01:59]} 49. Kd3 {[%emt 0:01:40]} Rc7 {[%emt 0:02:55]} 50. Rf1 {[%emt 0:02:39]} Kd7 {[%emt 0:03:18]} 51. Rf5 {[%emt 0:01:52]} Ra5 {[%emt 0:01:08]} 52. Rg5 {[%emt 0:01:58]} Kd6 {[%emt 0:00:51]} 53. Rxg4 {[%emt 0:00:31]} Ra1 {[%emt 0:00:28]} 54. Rf4 {[%emt 0:01:18]} Rd1+ {[%emt 0:00:26]} 55. Ke3 {[%emt 0:00:05]} Re7+ {[%emt 0:00:34]} 56. Kf2 {[%emt 0:00:33]} a5 {[%emt 0:00:44]} 57. Nf5+ {[%emt 0:00:12]} Kd7 {[%emt 0:00:06]} 58. Nxe7 {[%emt 0:00:06]} Kxe7 {[%emt 0:00:01]} 59. Ra4 {[%emt 0:00:45]} 1-0

[Event "Asian Continental-ch Women 2019"]
[Site "XingTai"]
[Date "2019.06.08"]
[Round "2.24"]
[White "Vo, Thi Kim Phung"]
[Black "Dauletova, Gulmira"]
[Result "1/2-1/2"]
[ECO "D38"]
[WhiteElo "2337"]
[BlackElo "2252"]
[Annotator "NA"]
[PlyCount "126"]
[EventDate "2019.06.06"]
[EventType "swiss"]
[EventCountry "CHN"]
[SourceTitle "playchess.com"]
[Source "ChessBase"]
[SourceQuality "1"]
[TimeControl "40/5400+30:1800+30"]

1. d4 {[%emt 0:00:00]} Nf6 {[%emt 0:01:00]} 2. Nf3 {[%emt 0:00:00]} d5 {[%emt 0:00:33]} 3. c4 {[%emt 0:00:00]} e6 {[%emt 0:00:21]} 4. Nc3 {[%emt 0:00:03]} Bb4 {[%emt 0:00:17]} 5. Bg5 {[%emt 0:00:26]} h6 {[%emt 0:06:01]} 6. Bxf6 {[%emt 0:00:08]} Qxf6 {[%emt 0:00:03]} 7. e3 {[%emt 0:00:16]} c5 {[%emt 0:03:16]} 8. cxd5 {[%emt 0:01:40]} exd5 {[%emt 0:00:25]} 9. Rc1 {[%emt 0:00:22]} c4 {[%emt 0:21:00]} 10. Be2 {[%emt 0:00:30]} O-O {[%emt 0:00:38]} 11. O-O {[%emt 0:01:15]} Bxc3 {[%emt 0:08:16]} 12. bxc3 {[%emt 0:00:08]} Bf5 {[%emt 0:05:16]} 13. Nd2 {[%emt 0:00:17]} Qe6 {[%emt 0:04:21]} 14. Re1 {[%emt 0:01:05]} Nd7 {[%emt 0:01:48]} 15. e4 {[%emt 0:04:53]} dxe4 {[%emt 0:07:33]} 16. Bxc4 {[%emt 0:01:48]} Qc6 {[%emt 0:00:43]} 17. Qb3 {[%emt 0:15:34]} Nf6 {[%emt 0:00:33]} 18. Nf1 {[%emt 0:00:35]} Rac8 {[%emt 0:05:46]} 19. Ne3 {[%emt 0:00:24]} Bg6 {[%emt 0:00:15]} 20. Bf1 {[%emt 0:11:35]} Qc7 {[%emt 0:04:43]} 21. Rc2 {[%emt 0:06:59]} Rfd8 {[%emt 0:01:27]} 22. Rec1 {[%emt 0:00:27]} Qb8 {[%emt 0:05:07]} 23. Rd2 {[%emt 0:01:56]} Kh7 {[%emt 0:05:24]} 24. Be2 {[%emt 0:00:47]} Rc7 {[%emt 0:03:25]} 25. a4 {[%emt 0:02:06]} Re7 {[%emt 0:00:47]} 26. c4 {[%emt 0:01:08]} Red7 {[%emt 0:00:45]} 27. Qb2 {[%emt 0:01:57]} Qc7 {[%emt 0:00:21]} 28. Qc3 {[%emt 0:01:14]} b6 {[%emt 0:01:47]} 29. a5 {[%emt 0:01:38]} Rd6 {[%emt 0:03:09]} 30. axb6 {[%emt 0:00:15]} axb6 {[%emt 0:00:01]} 31. Qb2 {[%emt 0:02:45]} Qd7 {[%emt 0:00:47]} 32. Rcd1 {[%emt 0:01:10]} Bh5 {[%emt 0:00:14]} 33. Bxh5 {[%emt 0:01:27]} Nxh5 {[%emt 0:00:02]} 34. Qb1 {[%emt 0:01:33]} f5 {[%emt 0:00:38]} 35. g4 {[%emt 0:04:35]} Rg6 {[%emt 0:00:35]} 36. Kh1 {[%emt 0:00:26]} fxg4 {[%emt 0:01:59]} 37. Qxe4 {[%emt 0:02:37]} Nf6 {[%emt 0:00:59]} 38. Qd3 {[%emt 0:01:44]} Qe6 {[%emt 0:02:41]} 39. Ng2 {[%emt 0:05:36]} Qe4 {[%emt 0:00:51]} 40. Re1 {[%emt 0:00:00]} Qxd3 {[%emt 0:00:00]} 41. Rxd3 {[%emt 0:01:28]} Rg5 {[%emt 0:06:21]} 42. d5 {[%emt 0:06:31]} b5 {[%emt 0:09:01]} 43. cxb5 {[%emt 0:01:35]} Rdxd5 {[%emt 0:00:27]} 44. Rxd5 {[%emt 0:00:11]} Nxd5 {[%emt 0:00:23]} 45. Rc1 {[%emt 0:01:30]} Nb6 {[%emt 0:00:54]} 46. Rb1 {[%emt 0:00:26]} Kg8 {[%emt 0:01:39]} 47. Ne3 {[%emt 0:00:15]} h5 {[%emt 0:01:44]} 48. Kg2 {[%emt 0:00:27]} Kf7 {[%emt 0:03:22]} 49. f3 {[%emt 0:07:11]} Re5 {[%emt 0:01:57]} 50. Rb3 {[%emt 0:00:11]} gxf3+ {[%emt 0:01:18]} 51. Kxf3 {[%emt 0:00:05]} g5 {[%emt 0:01:05]} 52. h3 {[%emt 0:00:39]} Ke6 {[%emt 0:01:10]} 53. Rb1 {[%emt 0:02:46]} Kd6 {[%emt 0:00:35]} 54. Rd1+ {[%emt 0:02:42]} Ke6 {[%emt 0:04:25]} 55. Rb1 {[%emt 0:00:15]} Kd6 {[%emt 0:00:09]} 56. Rd1+ {[%emt 0:00:06]} Kc5 {[%emt 0:00:08]} 57. Rc1+ {[%emt 0:00:39]} Kxb5 {[%emt 0:03:21]} 58. Rb1+ {[%emt 0:00:05]} Kc5 {[%emt 0:00:15]} 59. Rxb6 {[%emt 0:00:52]} Rxe3+ {[%emt 0:00:35]} 60. Kxe3 {[%emt 0:00:04]} Kxb6 {[%emt 0:00:03]} 61. Ke4 {[%emt 0:00:09]} Kc5 {[%emt 0:00:43]} 62. Kf5 {[%emt 0:00:07]} g4 {[%emt 0:00:14]} 63. hxg4 {[%emt 0:00:41]} hxg4 {[%emt 0:00:20]} 1/2-1/2